bitfinex/quotes_SOLUSD_20240727
["timestamp","ask_amount","ask_price","bid_price","bid_amount"]
[1722117857768,5.64068936,186.17,186.0,0.34]
[1722117857993,263.9393,186.24,186.01,41.7846]
[1722117857994,1.34347958,186.2,186.01,41.7846]
[1722117858158,1.34347958,186.2,186.02,65.34]
[1722117858365,5.63987958,186.2,186.02,65.34]
[1722117858673,4.2969,186.18,186.02,65.34]
[1722117858865,4.2977,186.15,186.02,65.0]
[1722117859189,1.343529,186.14,186.02,65.0]
[1722117859560,4.2983,186.12,186.02,20.0]
[1722117859764,50.81230227,186.11,186.01,16.2146]
[1722117860090,1.3438016,186.1,186.01,16.2146]
[1722117860519,4.639,186.09,186.01,16.2146]
[1722117860782,46.3439973,186.08,186.01,16.2146]
[1722117861083,1.34399684,186.12,186.01,16.2146]
[1722117861289,1.6837423,186.13,186.01,16.2146]
[1722117861493,1.3436198,186.15,186.01,16.2146]
[1722117861867,1.34360583,186.14,186.02,20.0]
[1722117862281,16.13,186.19,186.02,20.0]
[1722117862282,1.34356026,186.18,186.02,20.0]
[1722117862479,1.34335816,186.17,186.04,6.5752]
[1722117862684,1.34335816,186.17,186.05,20.0]
[1722117863095,1.34335841,186.18,186.05,20.0]
[1722117863289,1.34335841,186.17,186.05,20.0]
[1722117863470,4.2973,186.16,186.05,20.0]
[1722117863780,62.81356836,186.15,186.04,6.5752]
[1722117863982,4.2984,186.12,186.01,16.2146]
[1722117864193,46.34388626,186.11,186.01,16.2146]
[1722117864366,0.34,186.1,186.01,16.2146]
[1722117864769,1.68387922,186.1,186.01,16.2146]
[1722117866766,0.34,186.1,186.01,16.2146]
[1722117866962,1.34387827,186.13,186.01,16.2146]
[1722117867188,1.51364658,186.14,186.01,16.2146]
[1722117867400,1.34351867,186.17,186.02,45.34]
[1722117867894,5.64061867,186.17,186.02,45.34]
[1722117868096,5.64061867,186.17,186.03,20.0]
[1722117868467,4.2971,186.17,186.03,20.0]
[1722117868675,4.2968,186.19,186.03,20.0]
[1722117868901,1.34336024,186.18,186.04,45.0]
[1722117869101,1.34336024,186.18,186.05,20.0]
[1722117869394,1.68336521,186.17,186.05,20.0]
[1722117869690,4.2981,186.13,186.01,16.2146]
[1722117869900,46.3437033,186.12,186.02,20.0]
[1722117870410,1.3437033,186.12,186.02,20.0]
[1722117871505,1.34355621,186.18,186.02,20.0]
[1722117871688,1.34341623,186.17,186.03,45.34]
[1722117871885,1.34341623,186.17,186.04,20.0]
[1722117872821,15.31,186.27,186.05,66.5588]
[1722117873028,15.31,186.27,186.07,15.3118]
[1722117873029,1.34299126,186.23,186.07,15.3118]
[1722117873313,4.2964,186.2,186.08,20.0]
[1722117873475,4.2971,186.17,186.05,6.247]
[1722117873804,16.13,186.15,186.02,15.3118]
[1722117874007,4.2982,186.13,186.02,15.3118]
[1722117874206,1.34386756,186.12,186.02,15.3118]
[1722117874391,0.34,186.11,186.02,15.3118]
[1722117874702,1.34386971,186.1,186.02,15.3118]
[1722117874879,1.34381801,186.1,186.02,15.3118]
[1722117875080,36.3104,186.22,186.03,20.0]
[1722117875081,1.34360725,186.17,186.03,20.0]
[1722117875279,4.2978,186.14,186.03,20.0]
[1722117875535,46.68383179,186.13,186.02,15.3118]
[1722117875678,4.2987,186.1,186.02,15.3118]
[1722117875884,46.68383179,186.13,186.0,6.247]
[1722117875885,46.68399998,186.09,186.0,6.247]
[1722117876416,50.98319998,186.09,185.98,15.3118]
[1722117876800,46.68399998,186.09,185.98,15.3118]
[1722117877011,1.68399998,186.09,185.98,15.3118]
[1722117877188,0.34,186.09,185.98,15.3118]
[1722117877391,0.17,186.09,185.98,15.3118]
[1722117877595,0.17,186.09,185.99,20.0]
[1722117878409,46.34397662,186.1,185.99,20.0]
[1722117878410,45.0,186.1,185.99,20.0]
[1722117878613,46.34390074,186.1,185.99,20.0]
[1722117878791,45.0,186.1,185.99,20.0]
[1722117879109,1.34384461,186.09,185.99,20.0]
[1722117879491,0.34,186.08,185.98,15.3118]
[1722117879695,1.3441258,186.07,185.98,15.3118]
[1722117881106,0.34,186.06,185.98,15.3118]
[1722117881300,45.34,186.08,185.98,15.3118]
[1722117881301,0.17,186.08,185.98,15.3118]
[1722117881613,5.64225342,186.12,185.98,15.3118]
[1722117881789,45.0,186.11,185.98,15.3118]
[1722117881995,1.34395173,186.1,185.98,15.3118]
[1722117882805,0.34,186.09,185.99,20.0]
[1722117884022,1.34395036,186.08,185.98,15.3118]
[1722117884324,0.34,186.09,185.98,15.3118]
[1722117884325,1.68414764,186.07,185.98,15.3118]
[1722117884505,65.809,186.09,185.98,15.3118]
[1722117884506,1.34418749,186.08,185.98,15.3118]
[1722117884835,46.34395673,186.09,185.99,20.0]
[1722117885421,46.34395673,186.09,185.98,15.3118]
[1722117885611,1.34395673,186.09,185.99,20.0]
[1722117885994,46.68395716,186.1,185.99,20.0]
[1722117886499,1.34386304,186.15,185.99,20.0]
[1722117886703,1.68370687,186.14,185.99,20.0]
[1722117887117,4.2981,186.13,185.99,20.0]
[1722117887313,1.51371121,186.12,185.99,20.0]
[1722117887724,0.17,186.11,185.99,20.0]
[1722117887923,1.34395857,186.1,185.99,20.0]
[1722117888103,0.17,186.09,185.99,20.0]
[1722117888305,1.34403564,186.08,185.99,20.0]
[1722117889020,1.34403564,186.08,185.98,15.3118]
[1722117889212,1.3439551,186.07,185.98,15.3118]
[1722117889415,1.3439551,186.07,185.99,20.0]
[1722117889812,46.68394329,186.09,185.99,20.0]
[1722117890026,1.68394329,186.09,185.99,20.0]
[1722117890415,45.0,186.1,185.99,20.0]
[1722117890621,5.64190976,186.13,185.99,20.0]
[1722117890817,45.34,186.12,185.99,20.0]
[1722117891002,1.34381028,186.11,185.99,20.0]
[1722117891327,1.34378857,186.1,185.99,20.0]
[1722117891704,1.34381352,186.11,185.99,20.0]
[1722117892829,45.34,186.12,185.99,20.0]
[1722117893012,45.0,186.12,185.99,20.0]
[1722117893821,45.0,186.13,185.99,20.0]
[1722117895213,49.2981,186.13,185.99,20.0]
[1722117895399,1.68369616,186.12,185.99,20.0]
[1722117895599,4.2985,186.11,185.98,15.3118]
[1722117895807,1.34381186,186.1,185.98,15.3118]
[1722117897028,1.34381186,186.1,185.99,20.0]
[1722117897323,4.6391,186.09,185.98,15.3118]
[1722117897529,1.34395765,186.08,185.98,15.3118]
[1722117897824,1.34395762,186.07,185.98,15.3118]
[1722117898325,5.64335762,186.07,185.98,15.3118]
[1722117898534,1.34395758,186.08,185.98,15.3118]
[1722117898829,0.34,186.07,185.98,15.3118]
[1722117899529,1.3440867,186.12,185.98,15.3118]
[1722117899824,0.34,186.11,185.98,15.3118]
[1722117900123,4.6385,186.11,185.98,15.3118]
[1722117900327,50.64257072,186.1,185.99,20.0]
[1722117900627,0.34,186.09,185.99,20.0]
[1722117900928,45.0,186.1,185.99,20.0]
[1722117901326,1.34379229,186.1,185.98,15.3118]
[1722117901511,0.34,186.09,185.98,15.3118]
[1722117901716,5.64328645,186.08,185.98,15.3118]
[1722117901906,46.6840867,186.07,185.98,15.3118]
[1722117902424,45.34,186.07,185.98,15.3118]
[1722117902723,1.3440853,186.12,185.98,15.3118]
[1722117902934,4.299,186.09,185.98,15.3118]
[1722117903139,44.6414,186.16,185.99,20.0]
[1722117903310,4.2992,186.08,185.99,20.0]
[1722117903506,22.74,186.13,185.99,20.0]
[1722117903731,1.34397181,186.12,185.98,15.3118]
[1722117903912,4.2996,186.07,185.98,15.3118]
[1722117904319,4.2992,186.08,185.98,15.3118]
[1722117905014,1.34402826,186.07,185.98,15.3118]
[1722117905411,5.64272814,186.11,185.98,15.3118]
[1722117905611,46.68389052,186.1,185.98,15.3118]
[1722117905817,50.98269052,186.1,185.98,15.3118]
[1722117906117,4.2992,186.09,185.98,15.3118]
[1722117906334,46.68402785,186.08,185.98,15.3118]
[1722117906521,0.34,186.1,185.98,15.3118]
[1722117906726,1.34388661,186.12,185.99,20.0]
[1722117907033,0.34,186.11,185.99,20.0]
[1722117907435,1.34379778,186.1,185.99,20.0]
[1722117907611,0.34,186.09,185.99,20.0]
[1722117907808,1.34396954,186.08,185.98,15.3118]
[1722117908017,1.68413993,186.07,185.98,15.3118]
[1722117908427,46.68413993,186.07,185.98,15.3118]
[1722117909217,45.34,186.07,185.98,15.3118]
[1722117910435,46.68412031,186.07,185.98,15.3118]
[1722117910635,4.3,186.05,185.98,15.3118]
[1722117910842,46.68412031,186.07,185.96,0.8088155]
[1722117910843,84.44794594,186.04,185.96,0.8088155]
[1722117911023,4.301,186.01,185.96,0.8088155]
[1722117911224,46.68462852,186.0,185.96,0.8088155]
[1722117911531,4.3014,185.99,185.96,0.8088155]
[1722117911739,46.34468226,185.98,185.96,0.8088155]
[1722117911915,46.51468226,185.98,185.96,0.8088155]
[1722117912349,4.4717,185.97,185.96,0.8088155]
[1722117912718,49.6417,185.97,185.96,0.8088155]
[1722117913015,50.98668961,185.97,185.96,0.8088155]
[1722117913329,46.68498961,185.97,185.96,0.8088155]
[1722117913627,50.98668961,185.97,185.96,0.8088155]
[1722117914014,1.34489572,185.98,185.96,0.8088155]
[1722117914215,1.34469427,185.98,185.96,0.8088155]
[1722117914420,4.6417,185.97,185.96,0.8088155]
[1722117914730,49.6417,185.97,185.96,0.8088155]
[1722117915322,45.34,185.97,185.96,0.8088155]
[1722117917227,1.34477775,186.01,185.96,0.8088155]
[1722117917439,4.3011,186.0,185.96,0.8088155]
[1722117917738,1.34477775,186.01,185.96,0.8088155]
[1722117917946,1.34464904,186.03,185.96,0.8088155]
[1722117918239,5.64514904,186.03,185.96,0.8088155]
[1722117918436,4.3006,186.02,185.96,0.8088155]
[1722117918646,1.34455288,186.03,185.96,0.8088155]
[1722117918825,1.34430682,186.04,185.96,0.8088155]
[1722117919535,1.34430558,186.06,185.96,0.8088155]
[1722117919721,5.64400558,186.06,185.96,0.8088155]
[1722117921737,45.0,186.05,185.96,0.8088155]
[1722117921944,1.34420338,186.04,185.96,0.8088155]
[1722117922320,4.6406,186.03,185.96,0.8088155]
[1722117922519,1.34420338,186.04,185.96,0.8088155]
[1722117922742,50.64426099,186.05,185.96,0.8088155]
[1722117923139,49.3,186.05,185.96,0.8088155]
[1722117923443,45.0,186.05,185.96,0.8088155]
[1722117924240,50.98406099,186.06,185.96,0.8088155]
[1722117924742,4.2999,186.05,185.96,0.8088155]
[1722117924929,45.0,186.04,185.96,0.8088155]
[1722117927948,45.0,186.05,185.96,0.8088155]
[1722117928155,35.05451006,186.29,185.96,0.8088155]
[1722117928156,4.2986,186.11,185.96,0.8088155]
[1722117928449,1.34393184,186.11,185.96,0.8088155]
[1722117928647,5.64224995,186.12,185.98,15.7474]
[1722117928848,5.64224995,186.12,185.99,20.0]
[1722117930044,1.34378677,186.14,185.99,20.0]
[1722117930353,1.34378677,186.14,186.0,45.0]
[1722117930650,1.34378677,186.14,185.98,15.9174]
[1722117930651,17.51378677,186.14,185.98,15.7474]
[1722117930857,22.74,186.07,185.98,15.7474]
[1722117931026,22.74,186.04,185.96,0.8088155]
[1722117931230,4.3013,185.99,185.96,0.8088155]
[1722117931538,1.34458392,185.98,185.96,0.8088155]
[1722117931942,1.68465617,186.0,185.96,0.8088155]
[1722117932232,45.34,186.0,185.96,0.8088155]
[1722117932444,1.34453227,186.04,185.96,0.8088155]
[1722117932640,46.34453227,186.04,185.96,0.8088155]
[1722117932943,0.34,186.03,185.96,0.8088155]
[1722117933153,1.3446937,186.02,185.96,0.8088155]
[1722117933352,4.3014,185.99,185.96,0.8088155]
[1722117933653,1.34469155,186.0,185.96,0.8088155]
[1722117933989,50.64569155,186.0,185.96,0.8088155]
[1722117934255,49.301,186.0,185.96,0.8088155]
[1722117935447,4.3013,185.99,185.96,0.8088155]
[1722117935661,5.64610054,185.98,185.96,0.8088155]
[1722117936155,1.34460054,185.98,185.96,0.8088155]
[1722117936454,1.34466786,186.02,185.96,0.8088155]
[1722117937858,1.34445762,186.01,185.96,0.8088155]
[1722117938562,0.34,186.0,185.96,0.8088155]
[1722117938743,5.64596973,185.99,185.96,0.8088155]
[1722117938945,5.98637073,185.98,185.96,0.8088155]
[1722117939251,5.64637073,185.98,185.96,0.8088155]
[1722117940259,0.34,186.0,185.96,0.8088155]
[1722117940260,1.68473783,186.0,185.96,0.8088155]
[1722117940436,1.34466059,186.02,185.96,0.8088155]
[1722117940639,1.34445725,186.06,185.96,0.8088155]
[1722117941151,4.3003,186.03,185.96,0.8088155]
[1722117941346,1.34441359,186.02,185.96,0.8088155]
[1722117941553,5.64449469,186.04,185.96,0.8088155]
[1722117942243,4.3003,186.03,185.96,0.8088155]
[1722117944042,4.3006,186.02,185.96,0.8088155]
[1722117947072,4.3003,186.03,185.96,0.8088155]
[1722117947562,1.34438988,186.06,185.97,22.7095]
[1722117947860,0.34,186.05,185.97,22.7095]
[1722117948170,1.34431736,186.04,185.97,22.7095]
[1722117948465,0.34,186.03,185.97,22.7095]
[1722117949261,4.6405,186.03,185.97,22.7095]
[1722117950662,0.34,186.03,185.97,16.6644]
[1722117950866,4.3016,185.98,185.96,0.8088155]
[1722117951072,0.34,185.99,185.96,0.8088155]
[1722117951368,0.17,185.99,185.96,0.8088155]
[1722117951580,45.0,186.0,185.96,0.8088155]
[1722117952448,4.3017,185.97,185.96,0.8088155]
[1722117952671,49.6417,185.97,185.96,0.8088155]
[1722117953453,45.0,185.97,185.96,0.8088155]
[1722117953661,22.74,186.01,185.96,0.8088155]
[1722117953863,46.68464182,186.0,185.96,0.8088155]
[1722117955073,45.34,186.0,185.96,0.8088155]
[1722117955269,4.3008,186.02,185.96,0.8088155]
[1722117955453,0.34,186.01,185.96,0.8088155]
[1722117955655,4.3008,186.02,185.96,0.8088155]
[1722117955849,4.2998,186.06,185.96,0.8088155]
[1722117956050,22.74,185.97,185.96,0.8088155]
[1722117956268,22.74,185.97,185.83,15.2403]
[1722117956491,4.302,185.96,185.83,15.2403]
[1722117956774,4.3016,185.98,185.83,15.2403]
[1722117957179,49.3017,185.97,185.83,15.2403]
[1722117957780,4.3025,185.94,185.83,15.2403]
[1722117958361,4.3022,185.95,185.83,15.2403]
[1722117959051,0.34,185.99,185.84,20.0]
[1722117959254,0.34,185.98,185.85,45.17]
[1722117959482,0.34,185.98,185.86,20.0]
[1722117959866,0.34,185.98,185.85,45.17]
[1722117960180,4.6417,185.98,185.86,20.0]
[1722117960382,4.6417,185.98,185.85,20.17]
[1722117960877,1.68470495,185.98,185.85,20.0]
[1722117961180,4.3029,185.92,185.83,15.2403]
[1722117961485,1.3450897,185.91,185.83,15.2403]
[1722117961689,5.6482897,185.91,185.83,15.2403]
[1722117962058,4.3036,185.89,185.83,15.2403]
[1722117962268,1.34534581,185.89,185.83,15.2403]
[1722117962476,5.64894581,185.89,185.83,15.2403]
[1722117962680,4.3039,185.88,185.77,0.8088155]
[1722117962863,1.68544744,185.87,185.77,0.8088155]
[1722117963063,4.3051,185.83,185.77,0.8088155]
[1722117963294,1.34582005,185.82,185.77,0.8088155]
[1722117963458,1.34583609,185.84,185.77,0.8088155]
[1722117963664,0.34,185.83,185.77,0.8088155]
[1722117964077,4.645,185.83,185.77,0.8088155]
[1722117964282,40.25579816,185.82,185.77,0.8088155]
[1722117964591,45.0,185.82,185.77,0.8088155]
[1722117964798,0.17,185.83,185.77,0.8088155]
[1722117964964,49.645,185.83,185.77,0.8088155]
[1722117965266,45.34,185.83,185.77,0.8088155]
[1722117965885,22.74,185.85,185.77,0.8088155]
[1722117966197,5.65018981,185.85,185.77,0.8088155]
[1722117966367,1.34568981,185.85,185.77,0.8088155]
[1722117966568,45.0,185.85,185.77,0.8088155]
[1722117966878,1.34566043,185.87,185.77,0.8088155]
[1722117967076,5.64946043,185.89,185.77,0.8088155]
[1722117967473,5.64924537,185.89,185.77,0.8088155]
[1722117967683,28.38870485,185.91,185.77,0.8088155]
[1722117967989,24.08528965,185.94,185.78,21.3791]
[1722117968283,1.3450582,185.93,185.79,20.0]
[1722117968580,22.74,185.94,185.79,20.0]
[1722117968784,5.64628388,185.99,185.8,68.08]
[1722117968992,22.74,186.0,185.81,41.3791]
[1722117969293,24.08466553,186.03,185.83,22.74]
[1722117969470,28.38526553,186.03,185.85,21.3791]
[1722117969668,4.3006,186.02,185.86,20.34]
[1722117969883,4.3006,186.02,185.87,45.0]
[1722117970068,22.39513781,186.09,185.89,6.1388]
[1722117970069,24.08429796,186.08,185.89,6.1388]
[1722117970268,22.74,186.08,185.9,80.4103]
[1722117970484,22.74,186.08,185.9,60.2403]
[1722117970485,4.3004,186.03,185.9,60.2403]
[1722117970682,5.64361451,186.07,185.91,0.34]
[1722117970985,1.34401451,186.07,185.91,20.17]
[1722117971164,1.34401451,186.07,185.9,15.2403]
[1722117971364,4.3011,186.0,185.9,15.2403]
[1722117971568,28.26301451,186.07,185.9,15.2403]
[1722117971871,36.3606,186.04,185.9,15.2403]
[1722117972066,4.3017,185.97,185.9,15.2403]
[1722117972283,20.0,186.02,185.9,15.2403]
[1722117972481,4.3017,185.98,185.9,15.2403]
[1722117972667,4.6415,185.99,185.9,15.2403]
[1722117972987,5.6461,185.98,185.9,15.2403]
[1722117973175,4.3017,185.97,185.9,15.2403]
[1722117973371,1.68471286,185.99,185.9,15.2403]
[1722117973561,5.98621286,185.99,185.9,15.2403]
[1722117973766,49.3015,185.98,185.9,15.2403]
[1722117975095,4.3017,185.97,185.9,15.2403]
[1722117977371,45.0,185.98,185.9,15.2403]
[1722117977996,49.3016,185.98,185.9,15.2403]
[1722117978294,46.34467489,185.98,185.9,15.2403]
[1722117978471,4.3024,185.95,185.9,15.2403]
[1722117978672,5.64723785,185.95,185.9,15.2403]
[1722117978894,4.3024,185.94,185.9,15.2403]
[1722117979590,1.34483777,185.93,185.9,15.2403]
[1722117980264,1.34483777,185.93,185.85,15.8267]
[1722117980474,1.3449054,185.92,185.85,21.8278]
[1722117980670,21.34511484,185.96,185.85,21.8278]
[1722117980900,4.303,185.92,185.85,21.8278]
[1722117981077,4.3026,185.94,185.85,21.8278]
[1722117981395,45.34,185.95,185.85,21.8278]
[1722117982491,5.64716133,185.96,185.85,21.8278]
[1722117982699,4.3022,185.95,185.85,21.8278]
[1722117983486,23.50956814,185.98,185.85,21.8278]
[1722117983691,3.50956814,185.98,185.85,21.8278]
[1722117983873,1.34466685,186.03,185.86,65.34]
[1722117984072,4.301,186.0,185.86,65.34]
[1722117984279,5.6457981,185.99,185.86,65.34]
[1722117984495,4.301,186.01,185.86,65.34]
[1722117984699,4.3012,186.0,185.86,65.34]
[1722117985895,12.09420991,186.06,185.88,6.0011]
[1722117986101,12.09420991,186.06,185.89,65.34]
[1722117986280,12.09420991,186.06,185.9,15.8267]
[1722117986783,4.3008,186.01,185.9,15.8267]
[1722117986986,1.34450991,186.06,185.9,15.8267]
[1722117987181,4.3001,186.04,185.91,65.34]
[1722117987392,4.3003,186.03,185.91,65.34]
[1722117988409,4.3006,186.02,185.91,65.34]
[1722117988612,4.3016,185.98,185.91,65.17]
[1722117988782,4.3013,185.99,185.9,15.8267]
[1722117988982,5.64608342,185.98,185.9,15.8267]
[1722117989183,1.34448342,185.98,185.9,15.8267]
[1722117990107,4.3021,185.96,185.9,15.8267]
[1722117990314,5.6468195,185.96,185.9,15.8267]
[1722117990489,1.6847195,185.99,185.9,15.8267]
[1722117990693,4.3022,185.96,185.9,15.8267]
[1722117991010,4.303,185.92,185.9,15.8267]
[1722117991220,4.3026,185.94,185.9,15.8267]
[1722117991398,5.64653102,185.98,185.9,15.8267]
[1722117991590,45.17,185.97,185.9,15.8267]
[1722117991910,4.3017,185.98,185.9,15.8267]
[1722117992108,4.3018,185.97,185.9,15.8267]
[1722117992310,5.646414,185.98,185.9,15.8267]
[1722117992490,0.17,185.97,185.9,15.8267]
[1722117992804,4.3017,185.98,185.9,15.8267]
[1722117993186,22.78,185.99,185.9,15.8267]
[1722117993389,1.34468642,186.01,185.9,15.8267]
[1722117993390,4.301,186.01,185.9,15.8267]
[1722117993632,27.0807,186.02,185.9,15.8267]
[1722117993912,28.4251144,186.02,185.9,15.8267]
[1722117994410,22.78,186.02,185.9,15.8267]
[1722117994714,5.64545673,186.01,185.9,15.8267]
[1722117994896,4.3011,186.0,185.9,15.8267]
[1722117995214,22.78,186.02,185.9,15.8267]
[1722117995215,1.34445606,185.99,185.9,15.8267]
[1722117995406,1.68469205,185.98,185.9,15.8267]
[1722117995619,45.34,185.98,185.9,15.8267]
[1722117995791,22.78,185.99,185.9,15.8267]
[1722117996100,1.34454066,185.98,185.9,15.8267]
[1722117996304,22.78,185.99,185.9,15.8267]
[1722117996690,5.64341935,186.09,185.92,6.6297]
[1722117996891,24.12409654,186.1,185.93,65.34]
[1722117997100,28.42299654,186.1,185.94,22.8228]
[1722117997304,24.12409654,186.1,185.95,65.0]
[1722117998030,4.2992,186.09,185.95,65.0]
[1722117998194,4.2993,186.08,185.95,65.0]
[1722117998394,11.92162384,186.14,185.95,65.0]
[1722117998395,24.12394757,186.07,185.95,20.0]
[1722117998695,5.64366439,186.06,185.95,20.0]
[1722117998914,4.3004,186.03,185.94,22.8228]
[1722117999224,1.34437351,186.03,185.94,22.8228]
[1722117999421,4.301,186.01,185.94,22.8228]
[1722117999921,0.34,186.02,185.94,22.8228]
[1722118000126,45.34,186.02,185.94,22.8228]
[1722118000794,1.34440553,186.06,185.94,22.8228]
[1722118001121,4.4699,186.05,185.94,22.8228]
[1722118001431,24.2999,186.05,185.94,22.8228]
[1722118001801,50.64445463,186.04,185.94,22.8228]
[1722118002008,4.4704,186.03,185.94,22.8228]
[1722118004197,1.3443138,186.02,185.94,22.8228]
[1722118004399,1.68453093,186.01,185.94,22.8228]
[1722118004617,1.34451475,186.0,185.94,22.8228]
[1722118004923,4.3006,186.03,185.94,22.8228]
[1722118005118,0.17,186.04,185.94,22.8228]
[1722118005422,1.34416929,186.04,185.94,22.8228]
[1722118005625,4.3007,186.02,185.94,22.8228]
[1722118005918,1.34433607,186.01,185.94,22.8228]
[1722118006121,0.17,186.03,185.94,22.8228]
[1722118006501,49.6404,186.03,185.94,22.8228]
[1722118006811,4.3,186.05,185.94,22.8228]
[1722118007524,1.34417517,186.09,185.94,22.8228]
[1722118007825,4.299,186.09,185.95,65.0]
[1722118008027,1.34403693,186.12,185.95,65.34]
[1722118008198,4.2987,186.1,185.96,16.1931]
[1722118008713,4.2987,186.1,185.97,20.0]
[1722118008911,4.2987,186.1,185.96,16.1931]
[1722118008912,4.299,186.09,185.96,16.1931]
[1722118009336,4.2996,186.07,185.96,16.1931]
[1722118009515,45.17,186.08,185.96,16.1931]
[1722118009516,1.34404688,186.06,185.96,16.1931]
[1722118009720,4.3,186.05,185.96,16.1931]
[1722118010022,1.51412957,186.04,185.96,16.1931]
[1722118010209,0.17,186.06,185.96,16.1931]
[1722118010414,1.51412241,186.07,185.96,16.1931]
[1722118010729,0.17,186.06,185.96,16.1931]
[1722118010922,45.17,186.06,185.96,16.1931]
[1722118011628,49.4697,186.06,185.96,16.1931]
[1722118013134,0.17,186.07,185.96,16.1931]
[1722118013309,5.64319097,186.09,185.96,16.1931]
[1722118013509,69.6393,186.08,185.96,16.1931]
[1722118013710,5.64339168,186.07,185.96,16.1931]
[1722118014131,4.2994,186.07,185.96,16.1931]
[1722118015204,49.6392,186.08,185.96,16.1931]
[1722118016020,4.2994,186.07,185.96,16.1931]
[1722118017727,1.34399151,186.08,185.96,16.1931]
[1722118018035,4.2988,186.1,185.97,6.5414]
[1722118018339,1.34399151,186.11,185.97,6.5414]
[1722118018340,4.6385,186.11,185.99,15.739]
[1722118018541,45.34,186.1,185.99,15.739]
[1722118018838,4.2983,186.12,186.0,6.5414]
[1722118019044,1.34375181,186.14,186.0,6.5414]
[1722118019537,1.34363745,186.16,186.01,15.739]
[1722118019742,4.2973,186.17,186.04,15.739]
[1722118020037,4.2973,186.17,186.05,45.0]
[1722118020622,1.34325968,186.23,186.06,6.5414]
[1722118020844,4.2964,186.2,186.07,15.739]
[1722118021222,4.2967,186.19,186.07,15.739]
[1722118022334,4.297,186.18,186.07,15.739]
[1722118023126,0.34,186.2,186.07,15.739]
[1722118023127,4.2972,186.17,186.07,15.739]
[1722118023323,1.68315549,186.2,186.07,15.739]
[1722118023650,4.2969,186.18,186.07,15.739]
[1722118025536,45.34,186.2,186.08,6.5414]
[1722118025751,24.2964,186.21,186.09,15.739]
[1722118026036,1.34315357,186.24,186.12,6.5414]
[1722118026037,4.296,186.22,186.12,6.5414]
[1722118026245,4.2962,186.21,186.12,6.5414]
[1722118026463,4.296,186.22,186.12,6.5414]
[1722118028028,20.0,186.24,186.12,6.5414]
[1722118028229,4.296,186.22,186.12,6.5414]
[1722118028439,1.34295098,186.21,186.12,6.5414]
[1722118028647,1.34295762,186.2,186.12,6.5414]
[1722118028836,4.2971,186.17,186.12,6.5414]
[1722118029030,1.34315322,186.16,186.12,6.5414]
[1722118029232,25.57,186.21,186.12,6.5414]
[1722118029428,4.2973,186.17,186.12,6.5414]
[1722118029731,66.6833044,186.2,186.11,15.739]
[1722118029732,46.34329795,186.16,186.11,15.739]
[1722118029951,0.34,186.15,186.07,22.2804]
[1722118030156,1.34355749,186.14,186.07,22.2804]
[1722118030327,5.64155749,186.14,186.07,22.2804]
[1722118030946,0.34,186.13,186.07,15.739]
[1722118031265,1.34369634,186.12,186.07,15.739]
[1722118031430,0.34,186.13,186.02,21.8557]
[1722118031431,0.34,186.11,186.02,21.8557]
[1722118031629,1.68383489,186.11,186.02,21.8557]
[1722118032343,4.2987,186.1,186.02,21.8557]
[1722118032547,24.2987,186.1,186.02,21.8557]
[1722118032845,45.0,186.09,186.02,21.8557]
[1722118033147,45.34,186.09,186.02,21.8557]
[1722118033845,4.3002,186.04,185.97,21.8557]
[1722118034255,20.0,186.08,185.78,21.555968]
[1722118034256,1.34427403,186.03,185.91,21.8557]
[1722118034428,4.3015,185.98,185.91,21.8557]
[1722118034630,0.17,186.02,185.91,21.8557]
[1722118034631,5.64641142,185.97,185.91,21.8557]